{"text_format":"1","workbook":"xlsx","n_sheets":1,"sheets":["Coordinates"],"not_rendered":{"charts":0,"images":1,"macros":1,"external_links":0,"defined_names":2,"comments":0,"pivot_tables":0},"unopened":[],"bounds":{"document_bytes":16777216,"sheet_cells":100000,"rows_first":2000,"rows_last":500,"rows_between":2000,"halvings":0,"cell_chars":16384,"cell_head_chars":4096},"cells_cut":0,"cells_raw":0,"read":"whole","date_system":"1900"}

{"sheet":"Coordinates","index":0,"n_rows":66,"n_cols":59,"rows_kept":66,"cut":false,"hidden":false,"merged":[[64,3,64,5],[65,3,65,5],[65,6,65,7],[61,3,61,5],[61,6,61,7],[62,3,62,5],[63,3,63,5],[63,6,63,7],[53,3,53,5],[53,6,53,7],[59,3,59,5],[59,6,59,7],[60,3,60,5],[52,3,52,5],[47,6,47,7],[49,6,49,7],[51,6,51,7],[40,3,40,5],[41,3,41,5],[41,6,41,7],[37,3,37,5],[37,6,37,7],[38,3,38,5],[39,3,39,5],[39,6,39,7],[29,3,29,5],[29,6,29,7],[35,3,35,5],[35,6,35,7],[36,3,36,5],[25,3,25,5],[26,3,26,5],[27,3,27,5],[28,3,28,5],[25,6,25,7],[27,6,27,7],[23,3,23,5],[24,3,24,5],[23,6,23,7],[14,3,14,5],[15,3,15,5],[9,6,9,7],[11,6,11,7],[13,6,13,7],[15,6,15,7],[9,3,9,5],[10,3,10,5],[11,3,11,5],[12,3,12,5],[13,3,13,5],[47,3,47,5],[48,3,48,5],[49,3,49,5],[50,3,50,5],[51,3,51,5],[1,1,5,42]]}
[]
[null,"Level 3 Maths - Coordinates                                                                                                                                                                                                                                                                                                                                          Created by Mr.Lafferty@mathsrevision.com   "]
[]
[]
[]
[]
[]
[null,{"$f":"\"Q1.  Write down the coordinates when reflected in x-axis.\"","v":"Q1.  Write down the coordinates when reflected in x-axis."},null,null,null,null,null,null,null,null,null,null,null,null,null,null,null,null,null,null,null,null,null,null,null,null,null,null,null,null,null,null,null,null,null,null,null,null,null,null,null,null,null,null,null,null,null,{"$f":"ROUND(RAND()*(9-(-9))+(-9),0)","v":-2},{"$f":"ROUND(RAND()*(9-(-9))+(-9),0)","v":-9},null,null,{"$f":"CONCATENATE(\"(\",AV8,\",\",AW8,\")\")","v":"(-2,-9)"},null,null,{"$f":"AV8","v":-2},{"$f":"-AW8","v":9},null,{"$f":"TEXT(BC8,0)","v":"-2"},{"$f":"TEXT(BD8,0)","v":"9"}]
[null,null,null,null,null,null,null,null,null,null,null,null,null,null,null,null,null,null,null,null,null,null,null,null,null,null,null,null,null,null,null,null,null,null,null,null,null,null,null,null,null,null,null,null,null,null,null,{"$f":"ROUND(RAND()*(9-(-9))+(-9),0)","v":4},2,null,null,{"$f":"CONCATENATE(\"(\",AV9,\",\",AW9,\")\")","v":"(4,2)"},null,null,{"$f":"AV9","v":4},{"$f":"-AW9","v":-2},null,{"$f":"TEXT(BC9,0)","v":"4"},{"$f":"TEXT(BD9,0)","v":"-2"}]
[null,null,null,{"$f":"AZ8","v":"(-2,-9)"},null,null,"→",null,null,null,"(",null,",",null,")",null,null,null,null,null,null,null,null,null,null,null,null,null,null,null,null,null,null,null,null,null,null,null,null,null,null,null,null,null,null,null,null,1,0,null,null,"(1,0)",null,null,1,0,null,"1","0"]
[null,null,null,null,null,null,null,null,null,null,null,null,null,null,null,null,null,null,null,null,null,null,null,null,null,null,null,null,null,null,null,null,null,null,null,null,null,null,null,null,null,null,null,null,null,null,null,3,8,null,null,"(3,8)",null,null,3,-8,null,"3","-8"]
[null,null,null,{"$f":"AZ9","v":"(4,2)"},null,null,"→",null,null,null,"(",null,",",null,")"]
[]
[null,null,null,{"$f":"AZ10","v":"(1,0)"},null,null,"→",null,null,null,"(",null,",",null,")"]
[]
[null,null,null,{"$f":"AZ11","v":"(3,8)"},null,null,"→",null,null,null,"(",null,",",null,")"]
[]
[]
[]
[]
[]
[null,{"$f":"\"Q2.  Write down the coordinates when reflected in y-axis.\"","v":"Q2.  Write down the coordinates when reflected in y-axis."},null,null,null,null,null,null,null,null,null,null,null,null,null,null,null,null,null,null,null,null,null,null,null,null,null,null,null,null,null,null,null,null,null,null,null,null,null,null,null,null,null,null,null,null,null,{"$f":"ROUND(RAND()*(9-(-9))+(-9),0)","v":-1},{"$f":"ROUND(RAND()*(9-(-9))+(-9),0)","v":5},null,null,{"$f":"CONCATENATE(\"(\",AV22,\",\",AW22,\")\")","v":"(-1,5)"},null,null,{"$f":"-AV22","v":1},{"$f":"AW22","v":5},null,{"$f":"TEXT(BC22,0)","v":"1"},{"$f":"TEXT(BD22,0)","v":"5"}]
[null,null,null,null,null,null,null,null,null,null,null,null,null,null,null,null,null,null,null,null,null,null,null,null,null,null,null,null,null,null,null,null,null,null,null,null,null,null,null,null,null,null,null,null,null,null,null,{"$f":"ROUND(RAND()*(9-(-9))+(-9),0)","v":0},6,null,null,{"$f":"CONCATENATE(\"(\",AV23,\",\",AW23,\")\")","v":"(0,6)"},null,null,{"$f":"-AV23","v":0},{"$f":"AW23","v":6},null,{"$f":"TEXT(BC23,0)","v":"0"},{"$f":"TEXT(BD23,0)","v":"6"}]
[null,null,null,{"$f":"AZ22","v":"(-1,5)"},null,null,"→",null,null,null,"(",null,",",null,")",null,null,null,null,null,null,null,null,null,null,null,null,null,null,null,null,null,null,null,null,null,null,null,null,null,null,null,null,null,null,null,null,0,5,null,null,"(0,5)",null,null,0,5,null,"0","5"]
[null,null,null,null,null,null,null,null,null,null,null,null,null,null,null,null,null,null,null,null,null,null,null,null,null,null,null,null,null,null,null,null,null,null,null,null,null,null,null,null,null,null,null,null,null,null,null,-4,8,null,null,"(-4,8)",null,null,4,8,null,"4","8"]
[null,null,null,{"$f":"AZ23","v":"(0,6)"},null,null,"→",null,null,null,"(",null,",",null,")"]
[]
[null,null,null,{"$f":"AZ24","v":"(0,5)"},null,null,"→",null,null,null,"(",null,",",null,")"]
[]
[null,null,null,{"$f":"AZ25","v":"(-4,8)"},null,null,"→",null,null,null,"(",null,",",null,")"]
[]
[]
[]
[null,{"$f":"\"Q3.  Write down the coordinates when reflected in x-axis followed by reflection in the y-axis.\"","v":"Q3.  Write down the coordinates when reflected in x-axis followed by reflection in the y-axis."},null,null,null,null,null,null,null,null,null,null,null,null,null,null,null,null,null,null,null,null,null,null,null,null,null,null,null,null,null,null,null,null,null,null,null,null,null,null,null,null,null,null,null,null,null,{"$f":"ROUND(RAND()*(9-(-9))+(-9),0)","v":8},{"$f":"ROUND(RAND()*(9-(-9))+(-9),0)","v":-4},null,null,{"$f":"CONCATENATE(\"(\",AV34,\",\",AW34,\")\")","v":"(8,-4)"},null,null,{"$f":"-AV34","v":-8},{"$f":"-AW34","v":4},null,{"$f":"TEXT(BC34,0)","v":"-8"},{"$f":"TEXT(BD34,0)","v":"4"}]
[null,null,null,null,null,null,null,null,null,null,null,null,null,null,null,null,null,null,null,null,null,null,null,null,null,null,null,null,null,null,null,null,null,null,null,null,null,null,null,null,null,null,null,null,null,null,null,{"$f":"ROUND(RAND()*(9-(-9))+(-9),0)","v":1},5,null,null,{"$f":"CONCATENATE(\"(\",AV35,\",\",AW35,\")\")","v":"(1,5)"},null,null,{"$f":"-AV35","v":-1},{"$f":"-AW35","v":-5},null,{"$f":"TEXT(BC35,0)","v":"-1"},{"$f":"TEXT(BD35,0)","v":"-5"}]
[null,null,null,{"$f":"AZ34","v":"(8,-4)"},null,null,"→",null,null,null,"(",null,",",null,")",null,null,null,null,null,null,null,null,null,null,null,null,null,null,null,null,null,null,null,null,null,null,null,null,null,null,null,null,null,null,null,null,-8,6,null,null,"(-8,6)",null,null,8,-6,null,"8","-6"]
[null,null,null,null,null,null,null,null,null,null,null,null,null,null,null,null,null,null,null,null,null,null,null,null,null,null,null,null,null,null,null,null,null,null,null,null,null,null,null,null,null,null,null,null,null,null,null,7,1,null,null,"(7,1)",null,null,-7,-1,null,"-7","-1"]
[null,null,null,{"$f":"AZ35","v":"(1,5)"},null,null,"→",null,null,null,"(",null,",",null,")"]
[]
[null,null,null,{"$f":"AZ36","v":"(-8,6)"},null,null,"→",null,null,null,"(",null,",",null,")"]
[]
[null,null,null,{"$f":"AZ37","v":"(7,1)"},null,null,"→",null,null,null,"(",null,",",null,")"]
[]
[]
[]
[null,{"$f":"\"Q4.  Write down the coordinates when reflected in the vertical line x = \"&AT46&\".\"","v":"Q4.  Write down the coordinates when reflected in the vertical line x = 8."},null,null,null,null,null,null,null,null,null,null,null,null,null,null,null,null,null,null,null,null,null,null,null,null,null,null,null,null,null,null,null,null,null,null,null,null,null,null,null,null,null,null,null,{"$f":"ROUND(RAND()*(9-(-9))+(-9),0)","v":8},null,{"$f":"ROUND(RAND()*(9-(-9))+(-9),0)","v":-3},{"$f":"ROUND(RAND()*(9-(-9))+(-9),0)","v":-1},null,null,{"$f":"CONCATENATE(\"(\",AV46,\",\",AW46,\")\")","v":"(-3,-1)"},null,null,{"$f":"($AT$46-AV46)+$AT$46","v":19},{"$f":"AW46","v":-1},null,{"$f":"TEXT(BC46,0)","v":"19"},{"$f":"TEXT(BD46,0)","v":"-1"}]
[null,null,null,null,null,null,null,null,null,null,null,null,null,null,null,null,null,null,null,null,null,null,null,null,null,null,null,null,null,null,null,null,null,null,null,null,null,null,null,null,null,null,null,null,null,null,null,{"$f":"ROUND(RAND()*(9-(-9))+(-9),0)","v":-2},5,null,null,{"$f":"CONCATENATE(\"(\",AV47,\",\",AW47,\")\")","v":"(-2,5)"},null,null,{"$f":"($AT$46-AV47)+$AT$46","v":18},{"$f":"AW47","v":5},null,{"$f":"TEXT(BC47,0)","v":"18"},{"$f":"TEXT(BD47,0)","v":"5"}]
[null,null,null,{"$f":"AZ46","v":"(-3,-1)"},null,null,"→",null,null,null,"(",null,",",null,")",null,null,null,null,null,null,null,null,null,null,null,null,null,null,null,null,null,null,null,null,null,null,null,null,null,null,null,null,null,null,null,null,-8,6,null,null,"(-8,6)",null,null,24,6,null,"24","6"]
[null,null,null,null,null,null,null,null,null,null,null,null,null,null,null,null,null,null,null,null,null,null,null,null,null,null,null,null,null,null,null,null,null,null,null,null,null,null,null,null,null,null,null,null,null,null,null,7,-9,null,null,"(7,-9)",null,null,9,-9,null,"9","-9"]
[null,null,null,{"$f":"AZ47","v":"(-2,5)"},null,null,"→",null,null,null,"(",null,",",null,")"]
[]
[null,null,null,{"$f":"AZ48","v":"(-8,6)"},null,null,"→",null,null,null,"(",null,",",null,")"]
[]
[null,null,null,{"$f":"AZ49","v":"(7,-9)"},null,null,"→",null,null,null,"(",null,",",null,")"]
[]
[]
[]
[null,{"$f":"\"Q5.  Write down the coordinates when reflected in the horizontal line y = \"&AT58&\".\"","v":"Q5.  Write down the coordinates when reflected in the horizontal line y = 3."},null,null,null,null,null,null,null,null,null,null,null,null,null,null,null,null,null,null,null,null,null,null,null,null,null,null,null,null,null,null,null,null,null,null,null,null,null,null,null,null,null,null,null,{"$f":"ROUND(RAND()*(9-(-9))+(-9),0)","v":3},null,{"$f":"ROUND(RAND()*(9-(-9))+(-9),0)","v":-1},{"$f":"ROUND(RAND()*(9-(-9))+(-9),0)","v":-2},null,null,{"$f":"CONCATENATE(\"(\",AV58,\",\",AW58,\")\")","v":"(-1,-2)"},null,null,{"$f":"AV58","v":-1},{"$f":"($AT$58-AW58)+$AT$58","v":8},null,{"$f":"TEXT(BC58,0)","v":"-1"},{"$f":"TEXT(BD58,0)","v":"8"}]
[null,null,null,null,null,null,null,null,null,null,null,null,null,null,null,null,null,null,null,null,null,null,null,null,null,null,null,null,null,null,null,null,null,null,null,null,null,null,null,null,null,null,null,null,null,null,null,{"$f":"ROUND(RAND()*(9-(-9))+(-9),0)","v":8},-3,null,null,{"$f":"CONCATENATE(\"(\",AV59,\",\",AW59,\")\")","v":"(8,-3)"},null,null,{"$f":"AV59","v":8},{"$f":"($AT$58-AW59)+$AT$58","v":9},null,{"$f":"TEXT(BC59,0)","v":"8"},{"$f":"TEXT(BD59,0)","v":"9"}]
[null,null,null,{"$f":"AZ58","v":"(-1,-2)"},null,null,"→",null,null,null,"(",null,",",null,")",null,null,null,null,null,null,null,null,null,null,null,null,null,null,null,null,null,null,null,null,null,null,null,null,null,null,null,null,null,null,null,null,-5,1,null,null,"(-5,1)",null,null,-5,5,null,"-5","5"]
[null,null,null,null,null,null,null,null,null,null,null,null,null,null,null,null,null,null,null,null,null,null,null,null,null,null,null,null,null,null,null,null,null,null,null,null,null,null,null,null,null,null,null,null,null,null,null,-4,1,null,null,"(-4,1)",null,null,-4,5,null,"-4","5"]
[null,null,null,{"$f":"AZ59","v":"(8,-3)"},null,null,"→",null,null,null,"(",null,",",null,")"]
[]
[null,null,null,{"$f":"AZ60","v":"(-5,1)"},null,null,"→",null,null,null,"(",null,",",null,")"]
[]
[null,null,null,{"$f":"AZ61","v":"(-4,1)"},null,null,"→",null,null,null,"(",null,",",null,")"]